[Event "First GM Mix Bassano 2021"]
[Site "Bassano del Grappa"]
[Date "2021.03.19"]
[Round "6.4"]
[White "Marasa, Giuseppe"]
[Black "Plat, Vojta"]
[Result "0-1"]
[ECO "D07"]
[WhiteElo "1952"]
[BlackElo "2555"]
[Annotator "ChessBase"]
[PlyCount "98"]
[EventDate "2021.03.17"]
[EventType "swiss"]
[EventCountry "ITA"]
[SourceTitle "playchess.com"]
[Source "ChessBase"]
[SourceQuality "1"]
[TimeControl "5400+30"]

1. d4 {[%emt 0:00:00]} d5 {[%emt 0:00:42]} 2. c4 {[%emt 0:00:00]} Nc6 {[%emt 0:00:05]} 3. cxd5 {[%emt 0:07:18]} Qxd5 {[%emt 0:00:16]} 4. Nf3 {[%emt 0:00:34]} e5 {[%emt 0:00:06]} 5. Nc3 {[%emt 0:04:02]} Bb4 {[%emt 0:00:06]} 6. Bd2 {[%emt 0:04:48]} Bxc3 {[%emt 0:00:21]} 7. Bxc3 {[%emt 0:01:14]} e4 {[%emt 0:00:07]} 8. Ne5 {[%emt 0:01:49]} Nge7 {[%emt 0:04:47]} 9. e3 {[%emt 0:04:23]} Nxe5 {[%emt 0:02:43]} 10. dxe5 {[%emt 0:00:06]} Qxd1+ {[%emt 0:00:19]} 11. Rxd1 {[%emt 0:00:35]} Be6 {[%emt 0:00:03]} 12. a3 {[%emt 0:04:55]} Bd5 {[%emt 0:01:48]} 13. Be2 {[%emt 0:04:43]} O-O-O {[%emt 0:02:03]} 14. O-O {[%emt 0:02:44]} Rhe8 {[%emt 0:01:33]} 15. f4 {[%emt 0:06:10]} exf3 {[%emt 0:01:16]} 16. gxf3 {[%emt 0:01:32]} Be6 {[%emt 0:00:52]} 17. e4 {[%emt 0:01:30]} g5 {[%emt 0:00:05]} 18. Kf2 {[%emt 0:05:38]} Ng6 {[%emt 0:00:20]} 19. Rxd8+ {[%emt 0:06:11]} Rxd8 {[%emt 0:00:10]} 20. Rd1 {[%emt 0:01:17]} Re8 {[%emt 0:00:41]} 21. Bd4 {[%emt 0:03:16]} Bb3 {[%emt 0:02:24]} 22. Rd3 {[%emt 0:02:46]} Bc4 {[%emt 0:02:24]} 23. Rc3 {[%emt 0:00:36]} Bxe2 {[%emt 0:00:05]} 24. Kxe2 {[%emt 0:00:03]} b6 {[%emt 0:01:09]} 25. b4 {[%emt 0:03:45]} Kd7 {[%emt 0:00:32]} 26. Ke3 {[%emt 0:04:02]} Re6 {[%emt 0:05:05]} 27. Rd3 {[%emt 0:01:46]} Kc8 {[%emt 0:00:10]} 28. Rc3 {[%emt 0:00:18]} Nf4 {[%emt 0:00:11]} 29. Rc2 {[%emt 0:00:26]} Rh6 {[%emt 0:00:07]} 30. Bc3 {[%emt 0:03:31]} Kb7 {[%emt 0:02:24]} 31. Be1 {[%emt 0:00:46]} Rc6 {[%emt 0:00:05]} 32. Bc3 {[%emt 0:10:11]} Ng6 {[%emt 0:00:11]} 33. Kd3 {[%emt 0:01:09]} b5 {[%emt 0:00:14]} 34. Bd4 {[%emt 0:02:37]} Rxc2 {[%emt 0:01:57]} 35. Kxc2 {[%emt 0:00:04]} Nh4 {[%emt 0:00:09]} 36. Kd3 {[%emt 0:05:32]} Nxf3 {[%emt 1:12:30]} 37. Be3 {[%emt 0:01:11]} Nxe5+ {[%emt 0:00:00]} 38. Kd4 {[%emt 0:00:13]} Nf3+ {[%emt 0:00:00]} 39. Kd5 {[%emt 0:00:14]} h5 {[%emt 0:00:00]} 40. h3 {[%emt 0:00:48]} a6 {[%emt 0:00:00]} 41. Kc5 {[%emt 0:01:07]} g4 {[%emt 0:00:00]} 42. hxg4 {[%emt 0:00:13]} hxg4 {[%emt 0:00:00]} 43. Bf4 {[%emt 0:00:15]} Ne1 {[%emt 0:00:00]} 44. Kd5 {[%emt 0:00:25]} Nc2 {[%emt 0:00:00]} 45. Ke5 {[%emt 0:00:24]} Nxa3 {[%emt 0:00:00]} 46. Kf6 {[%emt 0:00:11]} Nc2 {[%emt 0:00:00]} 47. Kxf7 {[%emt 0:00:42]} Nxb4 {[%emt 0:00:00]} 48. e5 {[%emt 0:00:14]} Nc6 {[%emt 0:00:00]} 49. e6 {[%emt 0:00:13]} b4 {[%emt 0:00:00]} 0-1

[Event "First GM Mix Bassano 2021"]
[Site "Bassano del Grappa"]
[Date "2021.03.19"]
[Round "6.5"]
[White "Zlatanovic, Marcus"]
[Black "Gregoric, Andraz"]
[Result "0-1"]
[ECO "C60"]
[WhiteElo "1687"]
[BlackElo "2114"]
[Annotator "NA"]
[PlyCount "96"]
[EventDate "2021.03.17"]
[EventType "swiss"]
[EventCountry "ITA"]
[SourceTitle "playchess.com"]
[Source "ChessBase"]
[SourceQuality "1"]
[TimeControl "5400+30"]

1. e4 {[%emt 0:00:00]} e5 {[%emt 0:00:00]} 2. Nf3 {[%emt 0:00:00]} Nc6 {[%emt 0:00:00]} 3. Bb5 {[%emt 0:00:00]} g6 {[%emt 0:00:02]} 4. d3 {[%emt 0:01:29]} Bg7 {[%emt 0:00:10]} 5. O-O {[%emt 0:00:48]} a6 {[%emt 0:00:48]} 6. Bxc6 {[%emt 0:03:22]} bxc6 {[%emt 0:01:23]} 7. b3 {[%emt 0:01:07]} d6 {[%emt 0:03:55]} 8. Bb2 {[%emt 0:00:15]} c5 {[%emt 0:01:09]} 9. Nbd2 {[%emt 0:08:29]} Ne7 {[%emt 0:06:52]} 10. Nc4 {[%emt 0:06:20]} O-O {[%emt 0:00:48]} 11. Nfd2 {[%emt 0:08:56]} g5 {[%emt 0:08:29]} 12. Nf3 {[%emt 0:19:52]} h6 {[%emt 0:04:38]} 13. c3 {[%emt 0:04:23]} f5 {[%emt 0:01:44]} 14. Qe2 {[%emt 0:03:56]} fxe4 {[%emt 0:02:06]} 15. dxe4 {[%emt 0:00:06]} Bg4 {[%emt 0:00:12]} 16. Ncd2 {[%emt 0:00:14]} Ng6 {[%emt 0:00:49]} 17. Qc4+ {[%emt 0:02:09]} Kh7 {[%emt 0:00:31]} 18. h3 {[%emt 0:00:08]} Bxf3 {[%emt 0:01:39]} 19. Nxf3 {[%emt 0:00:10]} Rxf3 {[%emt 0:02:48]} 20. gxf3 {[%emt 0:00:48]} Qd7 {[%emt 0:00:54]} 21. Rfe1 {[%emt 0:00:21]} Nh4 {[%emt 0:07:38]} 22. Qf1 {[%emt 0:02:35]} Nxf3+ {[%emt 0:01:35]} 23. Kg2 {[%emt 0:00:36]} Nxe1+ {[%emt 0:00:46]} 24. Rxe1 {[%emt 0:00:07]} g4 {[%emt 0:00:56]} 25. Qd3 {[%emt 0:02:59]} Rf8 {[%emt 0:04:51]} 26. hxg4 {[%emt 0:14:57]} Qxg4+ {[%emt 0:00:13]} 27. Qg3 {[%emt 0:00:02]} Qe6 {[%emt 0:07:41]} 28. c4 {[%emt 0:05:30]} Rf6 {[%emt 0:07:08]} 29. Kh2 {[%emt 0:00:39]} Qf7 {[%emt 0:00:47]} 30. Rf1 {[%emt 0:04:52]} Rf3 {[%emt 0:02:24]} 31. Qh4 {[%emt 0:00:18]} Rf4 {[%emt 0:01:20]} 32. Qg3 {[%emt 0:00:10]} Qh5+ {[%emt 0:00:09]} 33. Kg2 {[%emt 0:00:47]} Rg4 {[%emt 0:00:06]} 34. f3 {[%emt 0:00:42]} Rxg3+ {[%emt 0:00:07]} 35. Kxg3 {[%emt 0:00:03]} Qg5+ {[%emt 0:00:06]} 36. Kh3 {[%emt 0:00:07]} Bf6 {[%emt 0:00:11]} 37. Bc1 {[%emt 0:00:26]} Qh4+ {[%emt 0:00:07]} 38. Kg2 {[%emt 0:00:01]} Bg5 {[%emt 0:00:12]} 39. Bxg5 {[%emt 0:00:08]} Qxg5+ {[%emt 0:00:13]} 40. Kf2 {[%emt 0:00:10]} Qd2+ {[%emt 0:00:07]} 41. Kg3 {[%emt 0:00:04]} Qxa2 {[%emt 0:00:05]} 42. f4 {[%emt 0:00:09]} Qxb3+ {[%emt 0:00:07]} 43. Kg4 {[%emt 0:00:03]} Qxc4 {[%emt 0:00:08]} 44. Re1 {[%emt 0:00:11]} exf4 {[%emt 0:00:10]} 45. Kxf4 {[%emt 0:00:03]} d5 {[%emt 0:00:24]} 46. Kf3 {[%emt 0:00:02]} Qxe4+ {[%emt 0:00:10]} 47. Rxe4 {[%emt 0:00:02]} dxe4+ {[%emt 0:00:05]} 48. Kxe4 {[%emt 0:00:07]} h5 {[%emt 0:37:17]} 0-1

[Event "First GM Mix Bassano 2021"]
[Site "Bassano del Grappa"]
[Date "2021.03.20"]
[Round "7.1"]
[White "Checa, Nicolas"]
[Black "Baliuniene, Margarita"]
[Result "1-0"]
[ECO "D36"]
[WhiteElo "2546"]
[BlackElo "1886"]
[Annotator "ChessBase"]
[PlyCount "103"]
[EventDate "2021.03.17"]
[EventType "swiss"]
[EventCountry "ITA"]
[SourceTitle "playchess.com"]
[Source "ChessBase"]
[SourceQuality "1"]
[TimeControl "5400+30"]

1. d4 {[%emt 0:05:05]} d5 {[%emt 0:00:00]} 2. c4 {[%emt 0:00:21]} e6 {[%emt 0:00:00]} 3. Nc3 {[%emt 0:00:08]} Nf6 {[%emt 0:00:00]} 4. cxd5 {[%emt 0:00:09]} exd5 {[%emt 0:00:00]} 5. Bg5 {[%emt 0:00:08]} c6 {[%emt 0:00:08]} 6. e3 {[%emt 0:00:38]} Be7 {[%emt 0:00:07]} 7. Bd3 {[%emt 0:00:30]} O-O {[%emt 0:00:06]} 8. Qc2 {[%emt 0:02:14]} h6 {[%emt 0:00:09]} 9. Bh4 {[%emt 0:00:07]} a5 {[%emt 0:00:15]} 10. Nge2 {[%emt 0:00:22]} Na6 {[%emt 0:00:17]} 11. a3 {[%emt 0:00:06]} b5 {[%emt 0:04:19]} 12. O-O {[%emt 0:05:22]} Bd7 {[%emt 0:03:45]} 13. Rfc1 {[%emt 0:03:13]} Nc7 {[%emt 0:00:33]} 14. a4 {[%emt 0:01:43]} b4 {[%emt 0:01:51]} 15. Nb1 {[%emt 0:00:10]} Ne6 {[%emt 0:00:19]} 16. Nd2 {[%emt 0:00:38]} c5 {[%emt 0:01:20]} 17. dxc5 {[%emt 0:02:53]} Bxc5 {[%emt 0:04:00]} 18. Bb5 {[%emt 0:06:51]} g5 {[%emt 0:02:21]} 19. Bxd7 {[%emt 0:01:53]} Qxd7 {[%emt 0:02:43]} 20. Bg3 {[%emt 0:00:28]} Rac8 {[%emt 0:00:13]} 21. Qd3 {[%emt 0:06:30]} Rfd8 {[%emt 0:02:56]} 22. Nb3 {[%emt 0:01:32]} Bb6 {[%emt 0:03:50]} 23. Qa6 {[%emt 0:11:00]} Bc7 {[%emt 0:12:49]} 24. Bxc7 {[%emt 0:02:14]} Rxc7 {[%emt 0:00:04]} 25. Qxa5 {[%emt 0:00:29]} Rc4 {[%emt 0:03:24]} 26. Nd2 {[%emt 0:06:55]} Rxc1+ {[%emt 0:00:49]} 27. Rxc1 {[%emt 0:00:08]} d4 {[%emt 0:00:19]} 28. exd4 {[%emt 0:09:36]} Nxd4 {[%emt 0:00:14]} 29. Nxd4 {[%emt 0:01:41]} Qxd4 {[%emt 0:00:09]} 30. Nf1 {[%emt 0:00:28]} Ng4 {[%emt 0:04:42]} 31. Rc2 {[%emt 0:04:17]} Re8 {[%emt 0:03:38]} 32. Qc5 {[%emt 0:06:42]} Qd1 {[%emt 0:09:09]} 33. Rc1 {[%emt 0:05:15]} Qxa4 {[%emt 0:00:28]} 34. Qf5 {[%emt 0:02:40]} b3 {[%emt 0:02:29]} 35. h3 {[%emt 0:01:02]} Ne5 {[%emt 0:00:57]} 36. Ng3 {[%emt 0:02:22]} Qf4 {[%emt 0:07:04]} 37. Rc8 {[%emt 0:00:29]} Rxc8 {[%emt 0:05:25]} 38. Qxc8+ {[%emt 0:00:09]} Kh7 {[%emt 0:00:03]} 39. Qc3 {[%emt 0:02:00]} g4 {[%emt 0:01:22]} 40. h4 {[%emt 0:01:02]} Kg6 {[%emt 0:03:36]} 41. Qxb3 {[%emt 0:00:37]} Qc1+ {[%emt 0:00:33]} 42. Kh2 {[%emt 0:00:27]} Qd2 {[%emt 0:05:38]} 43. Qb6+ {[%emt 0:01:02]} Kh7 {[%emt 0:04:30]} 44. b4 {[%emt 0:02:20]} Nd3 {[%emt 0:05:18]} 45. Qd4 {[%emt 0:00:11]} Qc2 {[%emt 0:01:54]} 46. Qe4+ {[%emt 0:00:14]} Kh8 {[%emt 0:00:28]} 47. b5 {[%emt 0:00:06]} Qb3 {[%emt 0:01:46]} 48. b6 {[%emt 0:00:22]} Qxb6 {[%emt 0:01:12]} 49. Qxd3 {[%emt 0:00:06]} Qxf2 {[%emt 0:00:05]} 50. Qf5 {[%emt 0:00:07]} Qxf5 {[%emt 0:00:37]} 51. Nxf5 {[%emt 0:00:09]} h5 {[%emt 0:00:25]} 52. Ng3 {[%emt 0:00:07]} 1-0

[Event "First GM Mix Bassano 2021"]
[Site "Bassano del Grappa"]
[Date "2021.03.20"]
[Round "7.2"]
[White "Gregoric, Andraz"]
[Black "Marasa, Giuseppe"]
[Result "1/2-1/2"]
[ECO "C84"]
[WhiteElo "2114"]
[BlackElo "1952"]
[Annotator "NA"]
[PlyCount "56"]
[EventDate "2021.03.17"]
[EventType "swiss"]
[EventCountry "ITA"]
[SourceTitle "playchess.com"]
[Source "ChessBase"]
[SourceQuality "1"]
[TimeControl "5400+30"]

1. e4 e5 2. Nf3 Nc6 3. Bb5 a6 4. Ba4 Nf6 5. d3 b5 6. Bb3 Be7 7. a4 b4 8. O-O O-O 9. a5 d6 10. Nbd2 Be6 11. c3 bxc3 12. bxc3 Bxb3 13. Qxb3 Qd7 14. Nc4 Rfb8 15. Qc2 Bf8 16. h3 g6 17. Be3 Bg7 18. Rfb1 Qe8 19. Ra2 Rxb1+ 20. Qxb1 Rb8 21. Rb2 Rxb2 22. Qxb2 Qb8 23. Qxb8+ Nxb8 24. Nfd2 h6 25. f3 Kf8 26. Kf1 Ke7 27. Ke2 Kd7 28. Nb3 Kc6 1/2-1/2

[Event "First GM Mix Bassano 2021"]
[Site "Bassano del Grappa"]
[Date "2021.03.20"]
[Round "7.5"]
[White "Grimaldi, Angela Flavia"]
[Black "Zlatanovic, Marcus"]
[Result "1-0"]
[ECO "B38"]
[WhiteElo "2067"]
[BlackElo "1687"]
[Annotator "NA"]
[PlyCount "109"]
[EventDate "2021.03.17"]
[EventType "swiss"]
[EventCountry "ITA"]
[SourceTitle "playchess.com"]
[Source "ChessBase"]
[SourceQuality "1"]
[TimeControl "5400+30"]

1. e4 {[%emt 0:00:00]} c5 {[%emt 0:00:38]} 2. Nf3 {[%emt 0:00:00]} g6 {[%emt 0:00:04]} 3. d4 {[%emt 0:00:00]} cxd4 {[%emt 0:00:06]} 4. Nxd4 {[%emt 0:00:00]} Bg7 {[%emt 0:00:07]} 5. c4 {[%emt 0:00:00]} Nc6 {[%emt 0:00:05]} 6. Be3 {[%emt 0:00:00]} Nf6 {[%emt 0:00:11]} 7. Nc3 {[%emt 0:00:00]} O-O {[%emt 0:00:32]} 8. Be2 {[%emt 0:00:11]} d6 {[%emt 0:00:09]} 9. O-O {[%emt 0:00:12]} Bd7 {[%emt 0:00:05]} 10. f3 {[%emt 0:00:07]} a5 {[%emt 0:00:40]} 11. b3 {[%emt 0:00:15]} Nxd4 {[%emt 0:00:13]} 12. Bxd4 {[%emt 0:00:06]} Bc6 {[%emt 0:00:08]} 13. Rc1 {[%emt 0:00:20]} Nd7 {[%emt 0:00:11]} 14. Be3 {[%emt 0:00:07]} Nc5 {[%emt 0:03:00]} 15. Qd2 {[%emt 0:00:28]} Qd7 {[%emt 0:01:38]} 16. Rfd1 {[%emt 0:01:09]} Rfd8 {[%emt 0:00:38]} 17. Qc2 {[%emt 0:04:39]} Qc7 {[%emt 0:05:08]} 18. Rb1 {[%emt 0:03:50]} Rdb8 {[%emt 0:28:11]} 19. Rdc1 {[%emt 0:05:49]} Qd7 {[%emt 0:08:57]} 20. Qd2 {[%emt 0:01:28]} Rd8 {[%emt 0:06:21]} 21. Kh1 {[%emt 0:04:30]} Rac8 {[%emt 0:03:02]} 22. Rc2 {[%emt 0:05:56]} Bxc3 {[%emt 0:00:23]} 23. Qxc3 {[%emt 0:02:15]} b6 {[%emt 0:01:49]} 24. Rd1 {[%emt 0:01:06]} Qb7 {[%emt 0:00:27]} 25. Bh6 {[%emt 0:01:50]} f6 {[%emt 0:00:39]} 26. Be3 {[%emt 0:05:12]} Rd7 {[%emt 0:06:54]} 27. Rcd2 {[%emt 0:03:22]} Rcd8 {[%emt 0:00:32]} 28. Bf2 {[%emt 0:04:21]} Kg7 {[%emt 0:13:59]} 29. Qe3 {[%emt 0:04:43]} b5 {[%emt 0:01:22]} 30. cxb5 {[%emt 0:02:59]} Bxb5 {[%emt 0:00:05]} 31. Bxb5 {[%emt 0:00:36]} Qxb5 {[%emt 0:00:05]} 32. Qc3 {[%emt 0:09:51]} Rc7 {[%emt 0:01:03]} 33. Qd4 {[%emt 0:03:42]} Rdc8 {[%emt 0:02:36]} 34. f4 {[%emt 0:02:50]} Ne6 {[%emt 0:01:04]} 35. Qd5 {[%emt 0:01:37]} Qxd5 {[%emt 0:00:12]} 36. exd5 {[%emt 0:00:12]} Nxf4 {[%emt 0:00:17]} 37. g3 {[%emt 0:03:49]} Nh5 {[%emt 0:00:06]} 38. Bb6 {[%emt 0:00:40]} Rc1 {[%emt 0:00:40]} 39. Bxa5 {[%emt 0:00:29]} Rxd1+ {[%emt 0:00:05]} 40. Rxd1 {[%emt 0:00:06]} Rc2 {[%emt 0:00:06]} 41. Rd2 {[%emt 0:01:36]} Rxd2 {[%emt 0:02:31]} 42. Bxd2 {[%emt 0:00:11]} Kf7 {[%emt 0:00:03]} 43. a4 {[%emt 0:03:19]} Ke8 {[%emt 0:00:04]} 44. g4 {[%emt 0:00:33]} Ng7 {[%emt 0:00:03]} 45. Bh6 {[%emt 0:00:13]} Nh5 {[%emt 0:01:12]} 46. gxh5 {[%emt 0:00:08]} g5 {[%emt 0:00:03]} 47. Kg2 {[%emt 0:00:34]} Kd7 {[%emt 0:00:04]} 48. Kf3 {[%emt 0:00:16]} e6 {[%emt 0:00:19]} 49. dxe6+ {[%emt 0:00:06]} Kxe6 {[%emt 0:00:03]} 50. a5 {[%emt 0:00:05]} Kd5 {[%emt 0:00:03]} 51. b4 {[%emt 0:00:32]} Kc6 {[%emt 0:00:06]} 52. Ke4 {[%emt 0:00:04]} d5+ {[%emt 0:00:05]} 53. Kd4 {[%emt 0:00:04]} g4 {[%emt 0:00:16]} 54. Bf4 {[%emt 0:00:24]} f5 {[%emt 0:00:09]} 55. h6 {[%emt 0:00:05]} 1-0

[Event "First GM Mix Bassano 2021"]
[Site "Bassano del Grappa"]
[Date "2021.03.20"]
[Round "8.2"]
[White "Sebenik, Matej"]
[Black "Shetty, Atulya"]
[Result "0-1"]
[ECO "D15"]
[WhiteElo "2481"]
[BlackElo "2447"]
[Annotator "RC"]
[PlyCount "90"]
[EventDate "2021.03.17"]
[EventType "swiss"]
[EventCountry "ITA"]
[SourceTitle "playchess.com"]
[Source "ChessBase"]
[SourceQuality "1"]
[TimeControl "5400+30"]

1. d4 {[%emt 0:02:02]} d5 {[%emt 0:00:00]} 2. c4 {[%emt 0:00:27]} c6 {[%emt 0:00:00]} 3. Nf3 {[%emt 0:00:12]} Nf6 {[%emt 0:00:00]} 4. Nc3 {[%emt 0:00:09]} a6 {[%emt 0:00:05]} 5. a4 {[%emt 0:00:55]} e6 {[%emt 0:00:29]} 6. Bg5 {[%emt 0:00:06]} Be7 {[%emt 0:02:29]} 7. e3 {[%emt 0:00:27]} a5 {[%emt 0:00:58]} 8. Bd3 {[%emt 0:05:29]} Na6 {[%emt 0:01:08]} 9. Rc1 {[%emt 0:00:08]} Nb4 {[%emt 0:00:58]} 10. Bb1 {[%emt 0:00:11]} O-O {[%emt 0:02:33]} 11. O-O {[%emt 0:00:07]} b6 {[%emt 0:02:21]} 12. cxd5 {[%emt 0:02:06]} exd5 {[%emt 0:03:33]} 13. Ne5 {[%emt 0:00:24]} Bb7 {[%emt 0:05:26]} 14. f4 {[%emt 0:05:46]} c5 {[%emt 0:13:25]} 15. Nb5 {[%emt 0:37:54]} Ba6 {[%emt 0:10:54]} 16. Bxf6 {[%emt 0:05:42]} Bxf6 {[%emt 0:00:20]} 17. dxc5 {[%emt 0:00:27]} bxc5 {[%emt 0:05:36]} 18. Rxc5 {[%emt 0:00:11]} Bxb5 {[%emt 0:13:04]} 19. Rxb5 {[%emt 0:01:42]} Qe7 {[%emt 0:07:21]} 20. Qd4 {[%emt 0:03:35]} Rfc8 {[%emt 0:02:56]} 21. b3 {[%emt 0:05:36]} g6 {[%emt 0:01:48]} 22. h3 {[%emt 0:00:45]} Rc7 {[%emt 0:05:40]} 23. e4 {[%emt 0:08:23]} dxe4 {[%emt 0:01:45]} 24. Qxe4 {[%emt 0:00:17]} Ra6 {[%emt 0:00:21]} 25. f5 {[%emt 0:06:04]} Kg7 {[%emt 0:04:38]} 26. Nc4 {[%emt 0:00:46]} Nc6 {[%emt 0:03:02]} 27. fxg6 {[%emt 0:05:39]} hxg6 {[%emt 0:00:16]} 28. Rd5 {[%emt 0:00:36]} Qxe4 {[%emt 0:08:18]} 29. Bxe4 {[%emt 0:00:04]} Re7 {[%emt 0:00:56]} 30. Bf3 {[%emt 0:00:09]} Bc3 {[%emt 0:01:02]} 31. Rd3 {[%emt 0:02:41]} Bb4 {[%emt 0:00:44]} 32. Bxc6 {[%emt 0:00:44]} Rxc6 {[%emt 0:00:01]} 33. Rd5 {[%emt 0:01:41]} Re2 {[%emt 0:02:39]} 34. Rd7 {[%emt 0:01:19]} Be7 {[%emt 0:01:01]} 35. Kh1 {[%emt 0:02:28]} f5 {[%emt 0:00:24]} 36. Rd5 {[%emt 0:00:36]} Bb4 {[%emt 0:00:20]} 37. Kh2 {[%emt 0:00:53]} Ra2 {[%emt 0:00:34]} 38. h4 {[%emt 0:01:32]} Re6 {[%emt 0:00:49]} 39. Rd3 {[%emt 0:01:17]} Re4 {[%emt 0:00:42]} 40. Kh3 {[%emt 0:00:00]} Be7 {[%emt 0:00:10]} 41. g3 {[%emt 0:00:05]} Ree2 {[%emt 0:00:08]} 42. Rh1 {[%emt 0:00:03]} Bc5 {[%emt 0:00:54]} 43. g4 {[%emt 0:00:20]} f4 {[%emt 0:01:03]} 44. Rf3 {[%emt 0:00:11]} g5 {[%emt 0:00:26]} 45. hxg5 {[%emt 0:00:13]} Re8 {[%emt 0:00:09]} 0-1

[Event "First GM Mix Bassano 2021"]
[Site "Bassano del Grappa"]
[Date "2021.03.20"]
[Round "8.3"]
[White "Vidic, Teja"]
[Black "Martin Duque, Jesus"]
[Result "0-1"]
[ECO "C41"]
[WhiteElo "2182"]
[BlackElo "2454"]
[Annotator "RC"]
[PlyCount "79"]
[EventDate "2021.03.17"]
[EventType "swiss"]
[EventCountry "ITA"]
[SourceTitle "playchess.com"]
[Source "ChessBase"]
[SourceQuality "1"]
[TimeControl "5400+30"]

1. e4 {[%emt 0:00:00]} d6 {[%emt 0:02:36]} 2. d4 {[%emt 0:00:00]} Nf6 {[%emt 0:00:04]} 3. Nc3 {[%emt 0:00:00]} e5 {[%emt 0:00:03]} 4. Nf3 {[%emt 0:00:05]} Nbd7 {[%emt 0:00:08]} 5. Bc4 {[%emt 0:00:15]} Be7 {[%emt 0:00:10]} 6. O-O {[%emt 0:00:54]} c6 {[%emt 0:02:34]} 7. a4 {[%emt 0:01:29]} h6 {[%emt 0:00:58]} 8. Re1 {[%emt 0:02:02]} Qc7 {[%emt 0:00:37]} 9. Ba2 {[%emt 0:00:49]} a5 {[%emt 0:01:08]} 10. h3 {[%emt 0:02:10]} g5 {[%emt 0:01:21]} 11. Qd3 {[%emt 0:05:58]} Nf8 {[%emt 0:05:04]} 12. Qc4 {[%emt 0:08:17]} Ne6 {[%emt 0:00:35]} 13. d5 {[%emt 0:01:46]} cxd5 {[%emt 0:01:35]} 14. Nxd5 {[%emt 0:02:30]} Nxd5 {[%emt 0:00:42]} 15. Qxd5 {[%emt 0:01:59]} Bd7 {[%emt 0:01:32]} 16. Bc4 {[%emt 0:04:47]} O-O {[%emt 0:02:07]} 17. Be3 {[%emt 0:07:46]} Nf4 {[%emt 0:07:45]} 18. Bxf4 {[%emt 0:02:10]} Be6 {[%emt 0:04:54]} 19. Qd1 {[%emt 0:02:37]} Qxc4 {[%emt 0:01:15]} 20. Be3 {[%emt 0:02:08]} f5 {[%emt 0:04:19]} 21. Nd2 {[%emt 0:05:02]} Qc6 {[%emt 0:00:18]} 22. exf5 {[%emt 0:01:18]} Bxf5 {[%emt 0:00:15]} 23. Qh5 {[%emt 0:02:31]} Kg7 {[%emt 0:01:19]} 24. h4 {[%emt 0:03:17]} Bg6 {[%emt 0:07:53]} 25. Qg4 {[%emt 0:00:42]} gxh4 {[%emt 0:03:33]} 26. f4 {[%emt 0:08:06]} Qc8 {[%emt 0:14:25]} 27. Qf3 {[%emt 0:01:57]} Rf7 {[%emt 0:05:38]} 28. Ra3 {[%emt 0:06:18]} Qxc2 {[%emt 0:03:15]} 29. Qxb7 {[%emt 0:02:19]} Rc8 {[%emt 0:00:50]} 30. Qd5 {[%emt 0:03:31]} Bf6 {[%emt 0:04:16]} 31. Rb3 {[%emt 0:05:46]} Re8 {[%emt 0:07:32]} 32. Rf1 {[%emt 0:05:04]} exf4 {[%emt 0:02:57]} 33. Bd4 {[%emt 0:03:48]} Qf5 {[%emt 0:01:25]} 34. Qxd6 {[%emt 0:01:51]} Re6 {[%emt 0:02:39]} 35. Qxf4 {[%emt 0:00:47]} Qd5 {[%emt 0:01:00]} 36. Bxf6+ {[%emt 0:04:01]} Rexf6 {[%emt 0:00:05]} 37. Qe3 {[%emt 0:00:15]} h3 {[%emt 0:02:20]} 38. gxh3 {[%emt 0:01:34]} Rf4 {[%emt 0:09:53]} 39. Rf2 Rxf2 {[%emt 0:00:00]} 40. Nf1 {[%emt 0:00:36]} 0-1

[Event "First GM Mix Bassano 2021"]
[Site "Bassano del Grappa"]
[Date "2021.03.20"]
[Round "8.5"]
[White "Subelj, Jan"]
[Black "Baenziger, Fabian"]
[Result "1-0"]
[ECO "B51"]
[WhiteElo "2430"]
[BlackElo "2409"]
[Annotator "NA"]
[PlyCount "50"]
[EventDate "2021.03.17"]
[EventType "swiss"]
[EventCountry "ITA"]
[SourceTitle "playchess.com"]
[Source "ChessBase"]
[SourceQuality "1"]
[TimeControl "5400+30"]

1. e4 {[%emt 0:00:24]} c5 {[%emt 0:00:00]} 2. Nf3 {[%emt 0:00:29]} d6 {[%emt 0:00:00]} 3. Bb5+ {[%emt 0:00:26]} Nd7 {[%emt 0:00:26]} 4. c3 {[%emt 0:00:41]} Ngf6 {[%emt 0:00:20]} 5. Qe2 {[%emt 0:00:16]} a6 {[%emt 0:00:11]} 6. Ba4 {[%emt 0:00:06]} b5 {[%emt 0:00:08]} 7. Bc2 {[%emt 0:00:06]} Bb7 {[%emt 0:00:05]} 8. d4 {[%emt 0:01:46]} e6 {[%emt 0:00:15]} 9. O-O {[%emt 0:00:09]} Be7 {[%emt 0:00:04]} 10. Re1 {[%emt 0:00:18]} O-O {[%emt 0:00:08]} 11. Nbd2 {[%emt 0:00:06]} cxd4 {[%emt 0:00:32]} 12. cxd4 {[%emt 0:00:07]} Qc7 {[%emt 0:00:45]} 13. Nf1 {[%emt 0:01:39]} e5 {[%emt 0:02:16]} 14. Ng3 {[%emt 0:01:59]} exd4 {[%emt 0:02:21]} 15. Nxd4 {[%emt 0:03:59]} Rfe8 {[%emt 0:01:42]} 16. Bf4 {[%emt 0:02:25]} Bf8 {[%emt 0:03:13]} 17. Rac1 {[%emt 0:07:08]} Qb6 {[%emt 0:06:50]} 18. Ndf5 {[%emt 0:02:08]} Rac8 {[%emt 0:07:53]} 19. Qd2 {[%emt 0:07:12]} Ne5 {[%emt 0:01:48]} 20. b3 {[%emt 0:00:25]} Ng6 {[%emt 0:05:45]} 21. Be3 {[%emt 0:14:13]} Qd8 {[%emt 0:00:37]} 22. Bd4 {[%emt 0:00:09]} Re6 {[%emt 0:09:42]} 23. f3 {[%emt 0:05:23]} Qe8 {[%emt 0:05:39]} 24. b4 {[%emt 0:02:04]} Ne5 {[%emt 0:07:54]} 25. Bb3 {[%emt 0:01:47]} Rxc1 {[%emt 0:02:52]} 1-0